Cogmind - Beta 11.1 @@@ ROGUE MODE // 2022.12.21 @ 13:50:54 Player: deadnoob Result: Destroyed by G-73 Enforcer with Phase Gun Performance ------------- Evolutions (8) 4000 Regions Visited (26) 5200 Robots Destroyed (308) 1540 Value Destroyed (13454) 13454 Prototype IDs (79) 1580 Alien Tech Used (15) 3000 Bonus (14779) 14779 TOTAL SCORE: 43553 Bonus ------- High Alert Combat Kills 2444 Follower Combat Kills 6280 Entered DSFs 500 Network Hubs Disabled 200 Aligned with FarCom 300 Met Imprinter 300 Was Imprinted 300 Met R17 at Cetus 500 Used Core Reset Matrix 3000 Scanned by Researcher 1000 Pursued by Intercept 500 Friendly Fire -545 Cogmind --------- Core Integrity 0/1700 Matter 199/425 Energy 348/350 System Corruption 5% Temperature Cool (9) Movement Core (50) Location -2/Section 7 Parts ------- > --- POWER (4) -------- (None) > --- PROPULSION (6) --- (None) > --- UTILITY (11) ----- Experimental Core Analyzer > --- WEAPON (2) ------- (None) > --- INVENTORY (5) ---- SHELL Armor Linked Autogun Peak State ------------ > --- POWER ------------ Cooled Antimatter Reactor Cooled Antimatter Reactor Cooled Antimatter Reactor Quantum Reactor > --- PROPULSION ------- Improved Heavy Treads Armored Heavy Treads Biometal Heavy Treads > --- UTILITY ---------- Experimental Power Amplifier Large Storage Unit Advanced Matter Compressor Experimental Terrain Scan Processor Advanced Target Analyzer Experimental Core Analyzer Advanced Weapon Cycler SHELL Armor Improved Energy Mantle > --- WEAPON ----------- Sigix Broadsword > --- INVENTORY -------- Biometal Heavy Treads Biometal Heavy Treads Experimental Energy Well Advanced Hacking Suite Advanced Hacking Suite Experimental System Shield Dimensional Node Initializer High-powered Transdimensional Reconstructor Subatomic Replicator Sigix Terminator Core Stripper [Rating: 218] Favorites ----------- Power Quantum Reactor Engine Heavy Ion Engine Power Core Micro Nuclear Core Reactor Quantum Reactor Propulsion Light Treads Treads Light Treads Leg Improved Aluminum Leg Wheel Compact Wheel Hover Unit Combat Gravmag System Flight Unit Improved VTOL Module Utility Huge Storage Unit Device Advanced Weapon Cycler Storage Huge Storage Unit Processor Advanced Target Analyzer Hackware Hacking Suite Protection SHELL Armor Weapon Light Assault Rifle Energy Gun Improved EM Shotgun Energy Cannon Heavy Ion Cannon Ballistic Gun Light Assault Rifle Ballistic Cannon Hardcell Cannon Launcher Mini Grenade Launcher Special Weapon Remote Datajack Impact Weapon Core Stripper Slashing Weapon Longsword +1 Piercing Weapon Force Lance Special Melee Weapon Advanced Datajack Build | -11 -10 -10 -9 -9 -9 -8 -8 -8 -7 -7 -7 -7 -6 -6 -5 -5 -4 -4 -4 -4 -4 -3 -3 -2 -2 -2 ------- Run | Scr Mat Min Mat Min Exi Min Mat Sto Fac Low Low Zio Pro Fac Fac DSF Fac Ext Cet Arc Hub Res Tes Res Qua Sec Slots Evolved 16 | . . . 2 . . . 2 . 2 . . . . 2 2 . 2 . . . . 2 . 2 . . Power 3 | . . . . . . . . . . . . . . . . . 1 . . . . 1 . 1 . . Propulsion 4 | . . . 1 . . . 1 . . . . . . 1 1 . . . . . . . . . . . Utility 9 | . . . 1 . . . 1 . 2 . . . . 1 1 . 1 . . . . 1 . 1 . . Weapon . | . . . . . . . . . . . . . . . . . . . . . . . . . . . Parts Attached 507 | . 12 4 16 11 . 2 25 39 23 4 4 10 8 50 7 9 24 34 12 6 6 15 71 27 40 48 Power 52 | . 1 . 1 . . . 1 3 . . . . . 4 . . 4 3 3 . 2 2 11 9 4 4 Engine 10 | . 1 . 1 . . . 1 2 . . . . . 2 . . 2 . . . . . 1 . . . Core 9 | . . . . . . . . 1 . . . . . 2 . . 2 2 . . 1 1 . . . . Reactor 33 | . . . . . . . . . . . . . . . . . . 1 3 . 1 1 10 9 4 4 Propulsion 96 | . 3 4 6 . . 1 4 19 2 . . . . 3 1 . 1 10 3 . . 1 20 2 8 8 Treads 53 | . . 2 6 . . 1 4 13 . . . . . . . . . . 3 . . 1 6 2 8 7 Leg 10 | . 3 2 . . . . . . . . . . . . . . . . . . . . 5 . . . Wheel 1 | . . . . . . . . . . . . . . . . . . . . . . . 1 . . . Hover 12 | . . . . . . . . . . . . . . 1 . . . 7 . . . . 4 . . . Flight 20 | . . . . . . . . 6 2 . . . . 2 1 . 1 3 . . . . 4 . . 1 Utility 192 | . 2 . 2 3 . . 8 7 17 2 1 7 4 27 3 5 14 9 4 1 4 6 27 8 11 20 Device 100 | . 1 . 2 2 . . 1 1 8 2 1 4 2 18 1 2 10 6 1 1 4 2 12 5 9 5 Storage 14 | . 1 . . 1 . . 1 . 1 . . . . 1 . . . . . . . 2 5 . 1 1 Processor 25 | . . . . . . . 1 . 4 . . . . 4 1 . 2 1 . . . . 3 3 1 5 Hackware 15 | . . . . . . . 2 3 . . . . . 1 1 1 2 . . . . . 2 . . 3 Protection 38 | . . . . . . . 3 3 4 . . 3 2 3 . 2 . 2 3 . . 2 5 . . 6 Artifact . | . . . . . . . . . . . . . . . . . . . . . . . . . . . Weapon 167 | . 6 . 7 8 . 1 12 10 4 2 3 3 4 16 3 4 5 12 2 5 . 6 13 8 17 16 Energy Gun 21 | . . . 4 3 . 1 . . . . . . . . . . . . 1 1 . 4 4 . 1 2 Energy Cannon 23 | . . . . . . . . . 1 1 1 1 1 6 1 . 1 3 1 1 . . . 3 . 2 Ballistic Gun 41 | . 4 . 2 1 . . 8 7 . . . . . . . . 1 . . 3 . 1 4 4 6 . Ballistic Cannon 1 | . . . . . . . . . . . . . . . . . . . . . . . . . . 1 Launcher 26 | . 2 . 1 4 . . 3 2 2 . 1 . . 3 . . 1 2 . . . 1 1 . 3 . Special Weapon 5 | . . . . . . . . . . . . 1 . . . 2 . 2 . . . . . . . . Impact Weapon 3 | . . . . . . . . . . . . . . . . . . . . . . . . . . 3 Slashing Weapon 43 | . . . . . . . 1 1 1 1 1 1 3 7 2 2 2 2 . . . . 4 . 7 8 Piercing Weapon 1 | . . . . . . . . . . . . . . . . . . . . . . . . 1 . . Special Melee Weapon 3 | . . . . . . . . . . . . . . . . . . 3 . . . . . . . . Unidentified Prototypes 39 | . . . 2 . . . 1 3 . . . 1 . 1 . . 1 1 3 . 2 . 11 . 7 6 Corrupted Parts 1 | . . . . . . . . . . . . . . . . . . . . . . . 1 . . . System Corruption 3 | . . . . . . . . . . . . . . . . . . . . . . . 3 . . . Parts Lost 72 | . 2 . . . . . 1 2 . . 3 . . 2 . 2 . 12 2 . 2 8 12 1 4 19 Power 13 | . 1 . . . . . . 1 . . . . . 1 . . . 2 . . 1 1 2 . 1 3 Propulsion 20 | . 1 . . . . . . . . . . . . . . . . 5 1 . . 2 4 . 1 6 Utility 33 | . . . . . . . 1 1 . . 3 . . 1 . 1 . 5 . . 1 4 5 . 2 9 Weapon 6 | . . . . . . . . . . . . . . . . 1 . . 1 . . 1 1 1 . 1 Highest Loss Streak 13 | . 2 . . . . . 1 1 . . 3 . . 1 . 2 . 2 2 . 1 7 5 1 2 13 To Critical Strikes 1 | . . . . . . . . . . . . . . . . . . . 1 . . . . . . . Average Slot Usage (%) 84 | . 97 100 98 100 100 100 90 99 89 92 89 91 77 79 94 93 89 80 73 84 83 64 63 75 72 52 Engine 5 | . 14 14 10 11 11 11 9 4 7 7 7 7 7 4 . . 2 . . . . . . . . . Core 1 | . . . . . . . . 4 . . . . . . 5 5 6 8 1 . 1 3 . . . . Reactor 3 | . . . . . . . . . . . . . . . . . . . 8 10 8 3 6 16 16 5 Treads 15 | . . . 32 33 33 33 35 34 . . . . . . . . . . 10 15 15 13 8 13 13 12 Leg 3 | . 28 27 . . . . . . . . . . . . . . . . . . . . 3 . . . Hover 1 | . . . . . . . . . . . . . . 2 . . . 9 4 . . . 4 . . . Flight 5 | . . . . . . . . 1 30 30 30 30 30 26 35 35 26 16 . . . . 1 . . . Device 12 | . 12 14 20 22 22 22 7 . 12 15 13 18 4 8 17 5 25 11 9 11 19 17 11 16 14 4 Storage 8 | . 14 14 11 11 11 11 9 9 7 7 7 7 7 6 5 5 5 5 5 5 5 3 5 4 5 7 Processor 6 | . . . . . . . 2 2 9 23 19 7 7 14 16 9 11 15 15 15 10 3 6 13 13 8 Hackware 2 | . . . . . . . . 15 11 . . . . 4 5 12 4 . . . . . 1 . . 2 Protection 4 | . . . . . . . 8 8 1 . . 6 12 3 . 10 . 3 7 13 10 10 3 4 4 5 Energy Gun 2 | . . . 9 15 11 14 . . . . . . . . . . . . 4 2 5 4 2 . . . Ballistic Gun 7 | . 27 28 12 . . . 17 16 . . . . . . . . . . . 7 5 1 . . . . Launcher 1 | . . . . 6 11 7 . . . . 2 . . . . . . 1 . . . . . . . . Slashing Weapon 1 | . . . . . . . . 1 6 7 5 5 4 4 4 2 4 3 . . . . 2 . 3 2 Naked Turns 34 | . . . . . . . . . . . . . . . . . . . . . . . 34 . . . Heaviest Build 169 | 11 88 86 97 97 95 97 111 109 22 20 25 31 24 30 22 26 29 48 88 89 89 89 111 163 169 108 Greatest Support 240 | 20 26 26 60 60 60 60 83 85 20 20 20 20 20 23 26 26 33 78 240 240 240 240 193 225 225 220 Greatest Overweight (x) 11 | . 3 3 1 1 1 1 1 10 1 . 1 1 1 1 . . . 1 2 . . . 11 . 1 1 Average Overweight (x) . | . 2 3 1 1 1 1 1 1 . . . . . . . . . . . . . . . . . . Largest Inventory Capacity 25 | . 25 25 25 25 25 25 25 25 25 10 10 10 10 10 10 10 10 10 10 10 10 15 15 15 15 15 Average Capacity 18 | . 24 25 25 25 25 25 25 25 10 10 10 10 10 10 10 10 10 10 10 10 10 12 14 15 15 14 Most Carried 25 | . 12 12 25 25 25 25 25 25 11 10 10 10 10 10 10 10 10 10 10 10 10 15 15 15 15 15 Average Carried 15 | . 10 12 21 25 24 24 24 24 9 9 9 7 8 9 8 9 9 9 9 9 9 10 12 14 14 12 Final Capacity 25 | 8 25 25 25 25 25 25 25 25 10 10 10 10 10 10 10 10 10 10 10 10 10 5 15 15 15 5 Final Carried 25 | 6 12 12 25 25 25 25 25 12 9 10 10 10 10 10 10 10 10 10 10 10 10 5 15 14 13 5 Class Distribution -------------------- 36% | Mutant 21% | Scavenger-Mutant 17% | Generator-Mutant 3% | Alien-Mutant Dominant Class ---------------- Mutant | -10/Materials Mutant | -10/Mines Mutant | -9/Materials Mutant | -9/Mines Mutant | -9/Exiles Mutant | -8/Mines Mutant | -8/Materials Scavenger-Mutant | -8/Storage Scavenger-Sprinter | -7/Factory Scavenger-Scout | -7/Lower Caves Scavenger-Scout | -7/Lower Caves Scavenger-Mutant | -7/Zion Scavenger-Mutant | -6/Proximity Caves Sprinter | -6/Factory Scavenger-Ninja | -5/Factory Hacker-Sprinter | -5/DSF Scavenger-Ninja | -4/Factory Commander-Ninja | -4/Extension Scavenger-Mutant | -4/Cetus Scavenger-Mutant | -4/Archives Scavenger-Skirmisher | -4/Hub_04(d) Scavenger-Mutant | -3/Research Scavenger-Mutant | -3/Testing Generator-Mutant | -2/Research Generator-Mutant | -2/Quarantine Alien-Mutant | -2/Section 7 Resources | -11 -10 -10 -9 -9 -9 -8 -8 -8 -7 -7 -7 -7 -6 -6 -5 -5 -4 -4 -4 -4 -4 -3 -3 -2 -2 -2 ----------- Run | Scr Mat Min Mat Min Exi Min Mat Sto Fac Low Low Zio Pro Fac Fac DSF Fac Ext Cet Arc Hub Res Tes Res Qua Sec Matter Collected 9824 | 200 398 32 324 155 . 20 639 1502 177 176 18 42 410 424 . 17 449 489 110 147 326 151 1687 576 775 580 Remotely . | . . . . . . . . . . . . . . . . . . . . . . . . . . . Salvage Created 14720 | . 554 44 660 252 . 245 1015 1831 92 52 . . . 795 . . 294 528 56 211 595 245 2323 1414 2525 989 Parts 793 | . 31 8 39 25 . 14 62 117 10 2 1 . . 46 . . 17 36 1 13 23 9 105 66 128 40 Haulers Intercepted 18 | . 1 . 3 . . . . 6 1 . . . . 1 . . . 1 . . . . 1 2 1 1 Recyclers Shooed 8 | . 1 . 2 . . 1 1 . . . . . . . . . 1 . . . . . 2 . . . Parts Field Recycled . | . . . . . . . . . . . . . . . . . . . . . . . . . . . Retrieved Matter . | . . . . . . . . . . . . . . . . . . . . . . . . . . . Parts Self-Destructed 10 | . . . . . . . . . . 5 . . 5 . . . . . . . . . . . . . Prevented 1 | . . . . . . . . . . . . . 1 . . . . . . . . . . . . . Kills | -11 -10 -10 -9 -9 -9 -8 -8 -8 -7 -7 -7 -7 -6 -6 -5 -5 -4 -4 -4 -4 -4 -3 -3 -2 -2 -2 ------- Run | Scr Mat Min Mat Min Exi Min Mat Sto Fac Low Low Zio Pro Fac Fac DSF Fac Ext Cet Arc Hub Res Tes Res Qua Sec Combat Hostiles Destroyed 199 | . 10 3 6 11 . 3 23 31 . . 3 . . 7 . . 2 6 1 . 7 3 25 16 31 11 Melee 38 | . . . . . . . . . . . . . . 2 . . . 1 . . . . 11 4 12 8 Guns 107 | . 10 3 5 2 . 3 16 24 . . . . . . . . . . . . 6 3 11 11 13 . Cannons 2 | . . . . . . . . . . . . . . . . . . . . . . . . 1 . 1 AOE 45 | . . . 1 9 . . 7 7 . . 3 . . 5 . . 2 5 . . . . . . 6 . Classes Destroyed 25 | . 6 . 2 1 . 1 4 1 . . 1 . . 2 . . . 2 . . 1 . . . 3 1 Worker 18 | . . . . 3 . . 1 4 . . . . . 2 . . 1 1 . . 1 . 4 . 1 . Builder 13 | . 1 . 1 . . . 1 1 1 . . . . 2 . . . 1 . . 1 . 2 . 2 . Tunneler 4 | . . . 1 1 . . . . 1 . . . . . . . . 1 . . . . . . . . Hauler 18 | . 1 . 3 . . . . 6 1 . . . . 1 . . . 1 . . . . 1 2 1 1 Recycler 18 | . 2 . 2 . . 1 . 2 . . . . . 3 . . 1 . . . 1 . 3 . 3 . Mechanic 3 | . . . . . . . 1 . . . . . . . . . . 1 . . . . 1 . . . Operator 13 | . . . . . . . 1 2 . . . . . . . . 1 2 . 6 . . . . . 1 Watcher 17 | . 1 . 1 . . . 3 1 . . . . . 4 . . 1 2 . . 1 . . 1 1 1 Swarmer 33 | . 5 3 2 6 . . 3 3 . . . . . 3 . . 2 3 . . 1 . . 2 . . Cutter 2 | . . . . . . . . . . . . . . 2 . . . . . . . . . . . . Saboteur 2 | . . . . . . . . . . . . . . . . . . 1 . . . . . . 1 . Grunt 65 | . 5 . 3 5 . 2 14 14 . . . . . . . . . 1 . . 3 1 7 . 9 1 Brawler 2 | . . . . . . . 1 . . . . . . . . . . . . . . 1 . . . . Duelist 7 | . . . . . . 1 1 2 . . . . . . . . . . . . . 1 . . 2 . Protector 1 | . . . . . . . . 1 . . . . . . . . . . . . . . . . . . Researcher 2 | . . . . . . . . . . . . . . . . . . . . . . . . . 1 1 Sentry 19 | . . . 2 . . . 3 10 . . . . . 1 . . . . . . . . . 3 . . Specialist 3 | . . . . . . . . . . . . . . . . . . . . . . . . . 3 . Hunter 18 | . . . . . . . 1 1 . . . . . . . . . 1 . . . . 6 4 5 . Programmer 36 | . . . . . . . . . . . . . . 1 . . . . . . 2 . 12 7 10 4 Heavy 1 | . . . . . . . . . . . . . . . . . . . . . 1 . . . . . Cetus Guard 1 | . . . . . . . . . . . . . . . . . . . 1 . . . . . . . S7 Guard 1 | . . . . . . . . . . . . . . . . . . . . . . . . . . 1 Tracker 2 | . . . . . . . . . . . . . . . . . . . . . . . . . . 2 Striker 3 | . . . . . . . . . . . . . . . . . . . . . . . . . . 3 Alpha 7 1 | . . . . . . . . . . . . . . . . . . . . . . . . . 1 . Master Thief 3 | . . . . . . . . . . . 3 . . . . . . . . . . . . . . . Thug 1 | . . . 1 . . . . . . . . . . . . . . . . . . . . . . . Fireman 1 | . . . . . . . . . . . . . . . . . . 1 . . . . . . . . Best Kill Streak 11 | . 4 3 2 5 . 4 6 11 1 . 3 . . 4 . . 2 4 1 4 4 3 4 4 10 2 Combat Bots Only 8 | . 3 3 2 3 . 3 5 8 . . 3 . . 3 . . 2 3 1 . 2 3 4 4 8 2 Max Kills in Single Turn 5 | . 1 1 2 5 . 1 3 5 1 . 1 . . 2 . . 2 3 1 1 2 1 1 2 5 1 Gunslinging 1 | . . . . . . . 1 1 . . . . . . . . . . . . . . . . . . Exploded 5 | . . . 1 3 . . 2 4 . . 1 . . 2 . . 2 2 . . . . . . 5 . Melee 1 | . . . . . . . . . . . . . . 1 . . . 1 . . . . 1 1 1 1 Uniques/NPCs Destroyed . | . . . . . . . . . . . . . . . . . . . . . . . . . . . Combat | -11 -10 -10 -9 -9 -9 -8 -8 -8 -7 -7 -7 -7 -6 -6 -5 -5 -4 -4 -4 -4 -4 -3 -3 -2 -2 -2 -------- Run | Scr Mat Min Mat Min Exi Min Mat Sto Fac Low Low Zio Pro Fac Fac DSF Fac Ext Cet Arc Hub Res Tes Res Qua Sec Damage Taken 35643 | . 496 44 197 140 . 100 822 1272 49 . 252 . . 359 . 248 84 1526 305 305 1221 3474 6063 1203 6012 11471 Core 3800 | . 190 24 17 37 . . 52 117 31 . 107 . . 68 . 52 61 275 24 30 52 322 673 51 196 1421 Absorbed by Shields 4736 | . . . 68 54 . 36 225 15 . . . . . . . 56 . 26 . . 121 128 . 1155 2852 . Reduced by Siege Mode 341 | . . . . . . . . . . . . . . . . . . . . 7 3 80 13 . 50 188 Redirected to Shielding 198 | . . . . . . . . . 11 . . . . 77 . 41 . 69 . . . . . . . . Regen/Repaired (Parts) 9406 | . . . . . . . 98 184 . . . 239 . . . . . . . . . . 893 380 2632 4980 Core Remaining (%) 68 | 100 . 14 . . . 86 . 69 . . . . 80 92 . 94 . . . . 61 . 23 . . . Volleys Fired 631 | . 62 6 35 8 . 7 75 107 . 1 8 1 2 16 4 . 2 23 7 34 26 12 91 34 44 26 Largest 2 | . 2 2 2 2 . 2 2 2 . 1 2 1 1 1 1 . 1 1 1 2 2 2 2 1 1 1 Hottest 188 | . 40 40 90 90 . 90 46 60 . 65 95 5 65 90 90 . 90 90 105 115 115 188 163 120 94 180 Shots Fired 1004 | . 111 12 67 12 . 14 142 199 . 1 11 1 2 16 4 . 2 23 7 61 46 15 154 34 44 26 Gun 870 | . 99 12 64 6 . 14 134 193 . . . . . . . . . . . 60 46 14 154 28 43 3 Cannon 70 | . . . . . . . . . . 1 3 . 2 12 4 . 1 10 7 1 . . . 6 . 23 Launcher 62 | . 12 . 3 6 . . 8 6 . . 8 . . 4 . . 1 12 . . . 1 . . 1 . Special 2 | . . . . . . . . . . . . 1 . . . . . 1 . . . . . . . . Kinetic 669 | . 99 12 20 . . . 134 193 . . . . . . . . . . . 58 26 8 47 28 33 11 Thermal 198 | . . . 10 . . . . . . 1 3 . 2 12 4 . 1 10 7 3 20 6 102 6 11 . Explosive 46 | . . . . 6 . . 8 6 . . 8 . . 4 . . 1 12 . . . 1 . . . . Electromagnetic 77 | . 12 . 37 6 . 14 . . . . . . . . . . . . . . . . 5 . . 3 Slashing 12 | . . . . . . . . . . . . . . . . . . . . . . . . . . 12 Robot Hit Streak 27 | . 14 2 7 6 . 7 16 15 . . 5 1 . 1 . . . 4 4 18 17 10 27 17 18 20 Robot Miss Streak 5 | . 5 4 4 1 . 1 2 5 . . 2 . . 2 . . . 2 1 3 2 2 2 5 2 3 Penetration Max 2 | . . . . . . . . . . . . . . . . . . . . . 1 1 1 2 1 . Secondary Targets 12 | . . . 1 . . 1 4 3 . . . . . . . . . . . . 1 . 2 . . . Max Gunslinging Chain 1 | . . . 1 . . 1 1 1 . . . . . . . . . . . . 1 . 1 . . . Shots Hit Robots 960 | . 60 4 47 6 . 13 111 136 6 1 6 1 . 18 . . 6 108 5 48 29 11 153 49 77 65 Core Hits 536 | . 28 4 26 17 . 13 60 83 1 1 9 . . 19 . . 10 51 1 12 15 9 50 33 64 30 Critical Kills 36 | . . . . . . . 1 . . . . . . . . . . . . 1 2 2 5 11 14 . Critical Parts Destroyed 58 | . 1 . . . . . . 1 . . . . . . . . . . . 2 2 . 6 19 27 . Critical Strikes 122 | . 1 . . . . . 1 1 . . . . . . . . . 2 . 5 4 2 18 38 46 4 Burn 3 | . . . . . . . . . . . . . . . . . . . . . . . 3 . . . Destroy 100 | . 1 . . . . . 1 1 . . . . . . . . . . . 5 4 2 11 34 41 . Sever 16 | . . . . . . . . . . . . . . . . . . 2 . . . . 4 1 5 4 Impale 3 | . . . . . . . . . . . . . . . . . . . . . . . . 3 . . Melee Attacks 487 | . . . . . . . 1 1 11 5 . 3 5 55 6 2 22 114 . . . . 63 25 85 89 Kinetic 8 | . . . . . . . . . . . . . . . . . . . . . . . . . . 8 Impact . | . . . . . . . . . . . . . . . . . . . . . . . . . . . Slashing 381 | . . . . . . . 1 1 11 5 . 3 5 55 6 2 22 36 . . . . 63 12 78 81 Piercing 20 | . . . . . . . . . . . . . . . . . . . . . . . . 13 7 . Sneak Attacks 117 | . . . . . . . . . 3 . . . . 9 . . 2 84 . . . . 7 3 8 1 Combat Hostiles 1 | . . . . . . . . . . . . . . . . . . 1 . . . . . . . . Follow-up Attacks . | . . . . . . . . . . . . . . . . . . . . . . . . . . . Damage Inflicted 39372 | . 701 41 1004 774 . 203 2380 3374 434 113 776 . . 1636 . . 638 3115 179 1313 1200 412 5968 1641 9361 4109 Guns 12164 | . 474 41 635 72 . 198 1555 2379 . . . . . . . . . . . 1278 1172 399 3123 364 474 . Cannons 1578 | . . . . . . . . . . . 52 . . . . . . 130 179 35 . . . 139 . 1043 Explosions 10572 | . 224 . 362 680 . . 825 995 . . 724 . . 324 . . 195 1343 . . . . . . 4900 . Melee 14956 | . . . . . . . . . 434 113 . . . 1312 . . 443 1642 . . . . 2840 1138 3987 3047 Ramming 102 | . 3 . 7 22 . 5 . . . . . . . . . . . . . . 28 13 5 . . 19 Kinetic 8931 | . 474 41 168 . . . 1555 2379 . . . . . . . . . . . 1257 774 248 642 364 474 555 Thermal 8568 | . . . 127 . . . . . . . 52 . . . . . . 130 179 56 398 151 2436 139 4900 . Explosive 5295 | . . . 209 680 . . 825 995 . . 724 . . 324 . . 195 1343 . . . . . . . . Electromagnetic 1032 | . 224 . 493 72 . 198 . . . . . . . . . . . . . . . . 45 . . . Impact . | . . . . . . . . . . . . . . . . . . . . . . . . . . . Slashing 14933 | . . . . . . . . . 434 113 . . . 1312 . . 443 1642 . . . . 2840 627 3987 3535 Piercing 511 | . . . . . . . . . . . . . . . . . . . . . . . . 511 . . Highest Corruption 44 | . 2 2 . . . . . 3 1 . . . . 1 . . 1 . . . 3 12 31 3 23 44 Average Corruption 12 | . 2 2 . . . . . 2 1 . . . . 1 . . 1 . . . 1 8 22 2 9 28 Corruption Purged 8 | . . . . . . . . . 1 . . . . 1 . . 1 . . . . . 5 . . . Corruption Blocked 7 | . . . . . . . . . . . . . . . . . . . . . . 7 . . . . Effects 299 | . 6 8 . . . . . 24 1 . . . . . . . . . . . . 4 110 10 70 66 Message Errors 69 | . 1 . . . . . . 8 . . . . . . . . . . . . . . 30 4 13 13 Matter Fused 64 | . 2 3 . . . . . 5 . . . . . . . . . . . . . 2 24 3 11 14 Heat Flow Errors 40 | . 2 2 . . . . . 3 . . . . . . . . . . . . . . 12 1 9 11 Energy Discharges 33 | . . 1 . . . . . 6 . . . . . . . . . . . . . 1 7 . 12 6 Parts Rejected 5 | . . . . . . . . . . . . . . . . . . . . . . . 1 . 2 2 Data Loss (minor) 39 | . . . . . . . . 2 1 . . . . . . . . . . . . 1 12 2 11 10 Data Loss (major) 12 | . . 1 . . . . . . . . . . . . . . . . . . . . 1 . 6 4 Misfires 4 | . . . . . . . . . . . . . . . . . . . . . . . 3 . . 1 Alerts 8 | . . 1 . . . . . . . . . . . . . . . . . . . . 3 . 2 2 Misdirections 15 | . . . . . . . . . . . . . . . . . . . . . . . 9 . 4 2 Weapon Failures 10 | . 1 . . . . . . . . . . . . . . . . . . . . . 8 . . 1 Overload Shots . | . . . . . . . . . . . . . . . . . . . . . . . . . . . Overflow Damage 2785 | . . . . 18 . . 37 8 130 . 38 . . 283 . . 30 314 . . . . 700 120 820 287 Projectiles . | . . . . . . . . . . . . . . . . . . . . . . . . . . . Explosions 583 | . . . . 18 . . 37 8 . . 38 . . 3 . . . . . . . . . . 479 . Melee 2202 | . . . . . . . . . 130 . . . . 280 . . 30 314 . . . . 700 120 341 287 Knockbacks 1 | . . . . . . . . . . . . . . . . . . . . . 1 . . . . . Impact 1 | . . . . . . . . . . . . . . . . . . . . . 1 . . . . . Kinetic . | . . . . . . . . . . . . . . . . . . . . . . . . . . . Secondary . | . . . . . . . . . . . . . . . . . . . . . . . . . . . Self-Inflicted Damage 1460 | . . . 19 49 . . 64 . . . 233 . . 67 . . . 13 . . 101 . . . 910 4 Shots 15 | . . . 1 1 . . 2 . . . 6 . . 2 . . . 1 . . 1 . . . 1 . Rammed 18 | . . . 1 2 . 1 . . . . . . . . . . . . . . 1 7 1 . . 5 Targets Rammed 23 | . 2 . 3 2 . 1 . . . . . . . . . . . . . . 2 7 1 . . 5 Kicked 2 | . 2 . . . . . . . . . . . . . . . . . . . . . . . . . Crushed 3 | . . . 2 . . . . . . . . . . . . . . . . . 1 . . . . . Highest Temperature 387 | . 247 83 112 52 . 144 33 273 3 16 63 . 40 180 72 . 367 250 319 234 346 156 379 340 238 387 Average Temperature 76 | . 49 44 32 20 . 60 6 32 2 12 34 . 23 57 14 . 75 39 158 86 132 64 107 118 73 117 Received Heat Transfer 3684 | . 183 . 87 30 . 24 321 517 27 . . . . 54 . . 36 255 9 45 166 527 419 108 453 423 Effects 8 | . . . . . . . . 1 . . . . . . . . . . . 1 1 . . 4 . 1 Shutdowns 2 | . . . . . . . . . . . . . . . . . . . . . . . . 2 . . Energy Bleed 2 | . . . . . . . . . . . . . . . . . . . . 1 . . . 1 . . Interference 3 | . . . . . . . . 1 . . . . . . . . . . . . 1 . . . . 1 Damage (minor) 1 | . . . . . . . . . . . . . . . . . . . . . . . . 1 . . Siege Activations 19 | . . . . . . . . . . . . . . . . . . . 1 2 2 2 1 3 5 3 Total Turns 360 | . . . . . . . . . . . . . . . . . . . 5 106 21 23 6 18 63 118 Longest Duration 97 | . . . . . . . . . . . . . . . . . . . 5 97 15 15 6 8 22 93 Robots Corrupted 1 | . 1 . . . . . . . . . . . . . . . . . . . . . . . . . Combat Hostiles . | . . . . . . . . . . . . . . . . . . . . . . . . . . . Parts Fried 5 | . 3 . 1 . . 1 . . . . . . . . . . . . . . . . . . . . Impact Corruptions . | . . . . . . . . . . . . . . . . . . . . . . . . . . . Robots Melted 5 | . . . . . . . . . . . . . . . . . . . 1 . 1 . 3 . . . Combat Hostiles 5 | . . . . . . . . . . . . . . . . . . . 1 . 1 . 3 . . . Parts Melted 16 | . . . . . . . . . . . . . . . . . . . 2 . 1 . 12 . . 1 Heat Transferred 5435 | . . . 285 . . . . . . . 74 . . . . . . 200 185 74 518 185 3803 111 . . Parts Sabotaged 1 | . . . . . . . . . . . . . . . . . . . . . . . . . 1 . Parts Stolen 4 | . . . . . . . . . . . 4 . . . . . . . . . . . . . . . Parts Stripped . | . . . . . . . . . . . . . . . . . . . . . . . . . . . Power Chain Reactions 3 | . . . 2 1 . . . . . . . . . . . . . . . . . . . . . . Missiles Intercepted . | . . . . . . . . . . . . . . . . . . . . . . . . . . . Alert | -11 -10 -10 -9 -9 -9 -8 -8 -8 -7 -7 -7 -7 -6 -6 -5 -5 -4 -4 -4 -4 -4 -3 -3 -2 -2 -2 ------- Run | Scr Mat Min Mat Min Exi Min Mat Sto Fac Low Low Zio Pro Fac Fac DSF Fac Ext Cet Arc Hub Res Tes Res Qua Sec Peak Influence 2515 | . 144 113 262 340 . 75 291 334 411 . . . . 527 245 173 760 2515 1521 834 870 463 405 663 2042 1220 Initial 1345 | . . 43 . 60 . . . 72 10 . . . . 12 214 171 88 372 1345 608 291 453 247 227 372 1104 Average 410 | . 66 74 120 140 . 16 99 112 302 . . . . 218 235 167 209 1390 1479 783 568 438 278 325 896 1120 Maximum Alert Level 5 | . . . 1 1 . . 1 1 2 . . . . 2 1 . 3 5 4 3 3 2 2 2 5 4 Low Security (%) 48 | . 100 100 89 82 . 100 82 86 35 . . . . 57 . 100 78 . . . . . 17 . . . Level 1 21 | . . . 10 17 . . 17 13 60 . . . . 19 100 . 4 1 . . 33 12 81 81 13 . Level 2 7 | . . . . . . . . . 3 . . . . 22 . . 4 8 . 12 40 87 . 18 25 . Level 3 10 | . . . . . . . . . . . . . . . . . 12 39 . 87 26 . . . 34 36 Level 4 7 | . . . . . . . . . . . . . . . . . . 12 100 . . . . . 11 63 Level 5 3 | . . . . . . . . . . . . . . . . . . 38 . . . . . . 14 . High Security . | . . . . . . . . . . . . . . . . . . . . . . . . . . . Max Security . | . . . . . . . . . . . . . . . . . . . . . . . . . . . Squads Dispatched 78 | . 3 . 2 . . . 3 4 4 . . . . 6 . 1 4 6 . . 4 1 8 8 13 11 Investigation 10 | . 2 . 1 . . . 1 . 1 . . . . 3 . . 1 1 . . . . . . . . Extermination 21 | . . . . . . . . . . . . . . 1 . . 2 . . . 1 . 5 3 6 3 Reinforcement 21 | . 1 . 1 . . . 2 2 1 . . . . 1 . 1 . 1 . . 2 . 3 3 2 1 Assault 23 | . . . . . . . . 2 2 . . . . 1 . . 1 4 . . 1 1 . 2 5 4 Garrison . | . . . . . . . . . . . . . . . . . . . . . . . . . . . Intercept 3 | . . . . . . . . . . . . . . . . . . . . . . . . . . 3 Searches Triggered . | . . . . . . . . . . . . . . . . . . . . . . . . . . . Construction Impeded 1 | . . . . . . . . . . . . . . . . . . . . . . . 1 . . . Haulers Reinforced 4 | . . . . . . . . . 1 . . . . . . . . . . . 1 . . 1 1 . Active Scanning Responses . | . . . . . . . . . . . . . . . . . . . . . . . . . . . Cargo Convoy Interrupts . | . . . . . . . . . . . . . . . . . . . . . . . . . . . Stealth | -11 -10 -10 -9 -9 -9 -8 -8 -8 -7 -7 -7 -7 -6 -6 -5 -5 -4 -4 -4 -4 -4 -3 -3 -2 -2 -2 --------- Run | Scr Mat Min Mat Min Exi Min Mat Sto Fac Low Low Zio Pro Fac Fac DSF Fac Ext Cet Arc Hub Res Tes Res Qua Sec Distress Signals 26 | . 3 . 4 1 . . 2 3 . . . . . 2 . . 1 2 1 . 1 . . 3 1 2 Communications Jammed 98 | . . . . . . . . . . . . . . . . . 33 . 30 1 34 . . . . . Distress Signals 91 | . . . . . . . . . . . . . . . . . 33 . 30 1 27 . . . . . Times Spotted 530 | . 27 3 21 11 . 3 26 44 5 7 4 . . 38 . 1 9 79 11 11 23 11 45 29 70 52 Peak Tracking Total 17 | . 5 3 4 3 . 3 5 9 4 4 4 . . 12 . 1 3 10 5 2 5 8 4 8 11 17 Tactical Retreats 38 | . 3 . 1 . . . 1 1 1 2 . . . 10 . 1 . 2 . . 4 1 2 2 1 6 Traps | -11 -10 -10 -9 -9 -9 -8 -8 -8 -7 -7 -7 -7 -6 -6 -5 -5 -4 -4 -4 -4 -4 -3 -3 -2 -2 -2 ------- Run | Scr Mat Min Mat Min Exi Min Mat Sto Fac Low Low Zio Pro Fac Fac DSF Fac Ext Cet Arc Hub Res Tes Res Qua Sec Traps Triggered 25 | . 3 . 1 . . . . 6 2 . . . . 3 . 2 . . . . . . 3 2 3 . Indirectly 2 | . 2 . . . . . . . . . . . . . . . . . . . . . . . . . Trap Hack Attempts . | . . . . . . . . . . . . . . . . . . . . . . . . . . . Triggered . | . . . . . . . . . . . . . . . . . . . . . . . . . . . Disarmed . | . . . . . . . . . . . . . . . . . . . . . . . . . . . Reprogrammed . | . . . . . . . . . . . . . . . . . . . . . . . . . . . Reused . | . . . . . . . . . . . . . . . . . . . . . . . . . . . Traps Extracted . | . . . . . . . . . . . . . . . . . . . . . . . . . . . Installed . | . . . . . . . . . . . . . . . . . . . . . . . . . . . Triggered . | . . . . . . . . . . . . . . . . . . . . . . . . . . . Exploded 1 | . . . . . . . . 1 . . . . . . . . . . . . . . . . . . Machines | -11 -10 -10 -9 -9 -9 -8 -8 -8 -7 -7 -7 -7 -6 -6 -5 -5 -4 -4 -4 -4 -4 -3 -3 -2 -2 -2 ---------- Run | Scr Mat Min Mat Min Exi Min Mat Sto Fac Low Low Zio Pro Fac Fac DSF Fac Ext Cet Arc Hub Res Tes Res Qua Sec Machines Disabled 54 | . . . 2 1 . . 1 3 2 . . . . 2 . . 14 2 . 4 3 . 2 . 11 7 Max in Single Turn 4 | . . . 1 1 . . 1 1 1 . . . . . . . . . . 1 2 . 1 . 4 1 Garrison Access 8 | . . . . . . . . 1 2 . . . . 3 . . . . . . 1 . . . 1 . Network Hub 1 | . . . . . . . . . . . . . . . . . . . . . 1 . . . . . Machines Sabotaged 1 | . . . . . . . 1 . . . . . . . . . . . . . . . . . . . Garrisons Compromised 1 | . . . . . . . . . . . . . . 1 . . . . . . . . . . . . Overloaded Fab Kills . | . . . . . . . . . . . . . . . . . . . . . . . . . . . Hacking | -11 -10 -10 -9 -9 -9 -8 -8 -8 -7 -7 -7 -7 -6 -6 -5 -5 -4 -4 -4 -4 -4 -3 -3 -2 -2 -2 --------- Run | Scr Mat Min Mat Min Exi Min Mat Sto Fac Low Low Zio Pro Fac Fac DSF Fac Ext Cet Arc Hub Res Tes Res Qua Sec Machines Accessed 54 | . 8 . 4 1 2 . 4 14 7 . . . . 5 4 . 2 . . . . . 2 . 1 . Terminals 31 | . 6 . 4 1 . . 3 11 4 . . . . . 1 . 1 . . . . . . . . . Fabricators 8 | . . . . . . . . . 1 . . . . 3 3 . . . . . . . 1 . . . Repair Stations 5 | . . . . . . . 1 2 . . . . . . . . 1 . . . . . 1 . . . Recycling Units 2 | . 2 . . . . . . . . . . . . . . . . . . . . . . . . . Scanalyzers . | . . . . . . . . . . . . . . . . . . . . . . . . . . . Garrison Access 6 | . . . . . . . . 1 2 . . . . 2 . . . . . . . . . . 1 . Total Hacks 154 | . 27 . 13 2 2 . 22 40 18 . . . . 16 6 . 3 . . . . . 4 . 1 . Successful 96 | . 18 . 3 1 2 . 17 33 6 . . . . 10 2 . 1 . . . . . 2 . 1 . Failed 57 | . 8 . 10 1 . . 5 7 12 . . . . 6 4 . 2 . . . . . 2 . . . Catastrophic 8 | . . . . 1 . . . 2 4 . . . . . 1 . . . . . . . . . . . Database Lockouts 1 | . 1 . . . . . . . . . . . . . . . . . . . . . . . . . Manual 179 | . 18 . 7 2 1 . 16 15 7 . . . . 29 6 . 12 18 . . 7 9 5 6 18 3 Terminals 103 | . 25 . 13 2 . . 20 29 12 . . . . . 1 . 1 . . . . . . . . . Fabricators 22 | . . . . . . . . . 2 . . . . 13 5 . . . . . . . 2 . . . Repair Stations 16 | . . . . . . . 2 10 . . . . . . . . 2 . . . . . 2 . . . Recycling Units 2 | . 2 . . . . . . . . . . . . . . . . . . . . . . . . . Scanalyzers . | . . . . . . . . . . . . . . . . . . . . . . . . . . . Garrison Access 9 | . . . . . . . . 1 4 . . . . 3 . . . . . . . . . . 1 . Terminal Hacks 51 | . 10 . 3 1 2 . 11 18 4 . . . . . 1 . 1 . . . . . . . . . Record 1 | . . . . . 1 . . . . . . . . . . . . . . . . . . . . . Robot Analysis 6 | . 1 . 1 1 . . 3 . . . . . . . . . . . . . . . . . . . Prototype ID Bank 7 | . 2 . 1 . . . 2 1 1 . . . . . . . . . . . . . . . . . Open Door 6 | . . . . . . . . 5 . . . . . . . . 1 . . . . . . . . . Open DSF 1 | . . . . . . . . . . . . . . . 1 . . . . . . . . . . . Branch Access Points 3 | . 1 . 1 . . . . . 1 . . . . . . . . . . . . . . . . . Emergency Access Points 1 | . 1 . . . . . . . . . . . . . . . . . . . . . . . . . Terminal Index 3 | . 1 . . . . . 1 1 . . . . . . . . . . . . . . . . . . Alert Level 6 | . . . . . . . 2 4 . . . . . . . . . . . . . . . . . . Unreport Threat 6 | . . . . . . . 2 4 . . . . . . . . . . . . . . . . . . Locate Traps 2 | . . . . . . . . 1 1 . . . . . . . . . . . . . . . . . Dispatch Records 1 | . 1 . . . . . . . . . . . . . . . . . . . . . . . . . Maintenance Status 1 | . 1 . . . . . . . . . . . . . . . . . . . . . . . . . Hauler Manifests 3 | . 1 . . . . . 1 1 . . . . . . . . . . . . . . . . . . Zone Layout 3 | . 1 . . . . . . 1 1 . . . . . . . . . . . . . . . . . EX-Prototype ID Bank 1 | . . . . . 1 . . . . . . . . . . . . . . . . . . . . . Fabricator Hacks 9 | . . . . . . . . . 1 . . . . 7 1 . . . . . . . . . . . Network Status 4 | . . . . . . . . . 1 . . . . 2 1 . . . . . . . . . . . Load Schematic 3 | . . . . . . . . . . . . . . 3 . . . . . . . . . . . . Build 2 | . . . . . . . . . . . . . . 2 . . . . . . . . . . . . Repair Station Hacks 14 | . . . . . . . 2 10 . . . . . . . . . . . . . . 2 . . . Scan Component 7 | . . . . . . . 1 5 . . . . . . . . . . . . . . 1 . . . Repair 7 | . . . . . . . 1 5 . . . . . . . . . . . . . . 1 . . . Recycling Unit Hacks . | . . . . . . . . . . . . . . . . . . . . . . . . . . . Scanalyzer . | . . . . . . . . . . . . . . . . . . . . . . . . . . . Garrison Access Hacks 5 | . . . . . . . . 1 . . . . . 3 . . . . . . . . . . 1 . Unlock Access 1 | . . . . . . . . . . . . . . 1 . . . . . . . . . . . . Seal Access 4 | . . . . . . . . 1 . . . . . 2 . . . . . . . . . . 1 . Unauthorized Hacks 17 | . 8 . . . . . 4 4 1 . . . . . . . . . . . . . . . . . Terminals 15 | . 6 . . . . . 4 4 1 . . . . . . . . . . . . . . . . . Track 3 | . 1 . . . . . . 1 1 . . . . . . . . . . . . . . . . . Assimilate 1 | . 1 . . . . . . . . . . . . . . . . . . . . . . . . . Botnet 6 | . 1 . . . . . 2 3 . . . . . . . . . . . . . . . . . . Detonate 3 | . 2 . . . . . 1 . . . . . . . . . . . . . . . . . . . Operators 1 | . 1 . . . . . . . . . . . . . . . . . . . . . . . . . Sabotage 1 | . . . . . . . 1 . . . . . . . . . . . . . . . . . . . Fabricators . | . . . . . . . . . . . . . . . . . . . . . . . . . . . Repair Stations . | . . . . . . . . . . . . . . . . . . . . . . . . . . . Recycling Units 2 | . 2 . . . . . . . . . . . . . . . . . . . . . . . . . Tunnel 2 | . 2 . . . . . . . . . . . . . . . . . . . . . . . . . Scanalyzers . | . . . . . . . . . . . . . . . . . . . . . . . . . . . Garrison Access . | . . . . . . . . . . . . . . . . . . . . . . . . . . . Data Cores Recovered . | . . . . . . . . . . . . . . . . . . . . . . . . . . . Used . | . . . . . . . . . . . . . . . . . . . . . . . . . . . Hacking Detections 36 | . 3 . 4 1 . . 4 8 7 . . . . 3 3 . 1 . . . . . 2 . . . Full Trace Events 7 | . . . 2 . . . . . 1 . . . . 3 . . 1 . . . . . . . . . Feedback Events 2 | . . . . . . . . . 1 . . . . . . . 1 . . . . . . . . . Corruption 2 | . . . . . . . . . 1 . . . . . . . 1 . . . . . . . . . Feedback Blocked . | . . . . . . . . . . . . . . . . . . . . . . . . . . . Robot Schematics Acquired 11 | . . . . . . . . . . . . 4 . . . . . . . . . . . . 7 . Robots Built 2 | . . . . . . . . . . . . . . 2 . . . . . . . . . . . . Authchips . | . . . . . . . . . . . . . . . . . . . . . . . . . . . Time 222 | . . . . . . . . . . . . . . 222 . . . . . . . . . . . . Total Robot Build Rating 18 | . . . . . . . . . . . . . . 18 . . . . . . . . . . . . Part Schematics Acquired 15 | . . . . . . . . . . . . 14 . . . . . . . . . . . . 1 . Parts Built 1 | . . . . . . . . . . . . . . 1 . . . . . . . . . . . . Authchips . | . . . . . . . . . . . . . . . . . . . . . . . . . . . Time 53 | . . . . . . . . . . . . . . 53 . . . . . . . . . . . . Total Part Build Rating 6 | . . . . . . . . . . . . . . 6 . . . . . . . . . . . . Parts Repaired 7 | . . . . . . . 1 5 . . . . . . . . . . . . . . 1 . . . Time 254 | . . . . . . . 26 166 . . . . . . . . . . . . . . 62 . . . Parts Recycled . | . . . . . . . . . . . . . . . . . . . . . . . . . . . Recycled Matter . | . . . . . . . . . . . . . . . . . . . . . . . . . . . Retrieved Matter . | . . . . . . . . . . . . . . . . . . . . . . . . . . . Retrieved Components . | . . . . . . . . . . . . . . . . . . . . . . . . . . . Parts Scanalyzed . | . . . . . . . . . . . . . . . . . . . . . . . . . . . Part Schematics Acquired . | . . . . . . . . . . . . . . . . . . . . . . . . . . . Parts Damaged . | . . . . . . . . . . . . . . . . . . . . . . . . . . . Bothacking | -11 -10 -10 -9 -9 -9 -8 -8 -8 -7 -7 -7 -7 -6 -6 -5 -5 -4 -4 -4 -4 -4 -3 -3 -2 -2 -2 ------------ Run | Scr Mat Min Mat Min Exi Min Mat Sto Fac Low Low Zio Pro Fac Fac DSF Fac Ext Cet Arc Hub Res Tes Res Qua Sec Used RIF Installer . | . . . . . . . . . . . . . . . . . . . . . . . . . . . Robots Hacked 3 | . . . . . . . . . . . . 1 . . . . . 2 . . . . . . . . Non-combat . | . . . . . . . . . . . . . . . . . . . . . . . . . . . Combat 3 | . . . . . . . . . . . . 1 . . . . . 2 . . . . . . . . Robot Hacks Applied 3 | . . . . . . . . . . . . 1 . . . . . 2 . . . . . . . . parse_system 3 | . . . . . . . . . . . . 1 . . . . . 2 . . . . . . . . Relay Couplers Released 5 | . . . . . . . . . 1 . . . . 1 . . . . . . 2 . . . 1 . Machine Destruction 5 | . . . . . . . . . 1 . . . . 1 . . . . . . 2 . . . 1 . Fabnet Peak Effective % . | . . . . . . . . . . . . . . . . . . . . . . . . . . . Robots Rewired 36 | . . . . . . . . . . . . . . . . . . 36 . . . . . . . . Allies Hacked 1 | . . . . . . . . . . . . . . . . . . 1 . . . . . . . . Hacks Repelled . | . . . . . . . . . . . . . . . . . . . . . . . . . . . Allies | -11 -10 -10 -9 -9 -9 -8 -8 -8 -7 -7 -7 -7 -6 -6 -5 -5 -4 -4 -4 -4 -4 -3 -3 -2 -2 -2 -------- Run | Scr Mat Min Mat Min Exi Min Mat Sto Fac Low Low Zio Pro Fac Fac DSF Fac Ext Cet Arc Hub Res Tes Res Qua Sec Total Allies 80 | . . 5 . . . . . 2 . . . 4 . 4 1 . 6 45 . . 6 6 . 1 . . Largest Group 19 | . . 5 5 . . . . 2 . . . 4 4 2 1 . 6 19 4 1 6 3 . 1 1 . Highest-Rated Group 1029 | . . 84 84 . . . . 62 . . . 154 154 138 27 . 362 1029 291 150 473 288 . 269 243 . Highest-Rated Ally 269 | . . 31 31 . . . . 31 . . . 39 39 69 27 . 103 167 164 150 150 96 . 269 243 . Zionite Dispatches 16 | . . . . . . . . . . . . . . 3 1 . 3 3 . . 3 2 . 1 . . Heavy 3 | . . . . . . . . . . . . . . . . . 1 1 . . 1 . . . . . Light 1 | . . . . . . . . . . . . . . . . . . . . . . 1 . . . . Recon 2 | . . . . . . . . . . . . . . 1 . . 1 . . . . . . . . . Fire 3 | . . . . . . . . . . . . . . . . . 1 1 . . 1 . . . . . Hacker 1 | . . . . . . . . . . . . . . . . . . . . . . 1 . . . . Experimental 1 | . . . . . . . . . . . . . . . . . . . . . . . . 1 . . Hero 1 | . . . . . . . . . . . . . . . . . . 1 . . . . . . . . Kinetic Resupply 1 | . . . . . . . . . . . . . . 1 . . . . . . . . . . . . Defense Resupply 1 | . . . . . . . . . . . . . . . . . . . . . 1 . . . . . Infowar Resupply 1 | . . . . . . . . . . . . . . 1 . . . . . . . . . . . . Hacking Resupply 1 | . . . . . . . . . . . . . . . 1 . . . . . . . . . . . Total Orders 9 | . . . . . . . . . . . . . . 4 2 . . 1 . . 1 . . . 1 . STAY 3 | . . . . . . . . . . . . . . 2 1 . . . . . . . . . . . GUARD 2 | . . . . . . . . . . . . . . . . . . 1 . . . . . . 1 . DROP 4 | . . . . . . . . . . . . . . 2 1 . . . . . 1 . . . . . Ally Attacks 517 | . . . 49 . . . . 11 . . . . 4 5 . . 22 292 22 6 34 18 . 9 45 . Total Damage 22469 | . . . 624 . . . . 105 . . . . 243 533 . . 1342 11017 1563 572 1666 520 . 1344 2940 . Kills 159 | . . . 12 . . . . . . . . . 3 2 . . 14 74 9 4 13 1 . 8 19 . Allies Corrupted 3 | . . . . . . . . . . . . . . . . . . 2 . . . . . . 1 . Allies Melted 1 | . . . . . . . . . . . . . . . . . . 1 . . . . . . . . Intel | -11 -10 -10 -9 -9 -9 -8 -8 -8 -7 -7 -7 -7 -6 -6 -5 -5 -4 -4 -4 -4 -4 -3 -3 -2 -2 -2 ------- Run | Scr Mat Min Mat Min Exi Min Mat Sto Fac Low Low Zio Pro Fac Fac DSF Fac Ext Cet Arc Hub Res Tes Res Qua Sec Robot Analysis Total 6 | . 1 . 1 1 . . 3 . . . . . . . . . . . . . . . . . . . Derelict Logs Recovered 6 | . . 1 . 2 . . . . . . 1 1 1 . . . . . . . . . . . . . Drone Launches . | . . . . . . . . . . . . . . . . . . . . . . . . . . . Drone Recoveries . | . . . . . . . . . . . . . . . . . . . . . . . . . . . Zionite Intel Received 18 | . . . . . . . . . . . . . . 4 1 . 1 3 . . . 1 1 1 5 1 Main Access 1 | . . . . . . . . . . . . . . . . . . . . . . . . . . 1 Branch Access 4 | . . . . . . . . . . . . . . 1 . . 1 . . . . 1 . 1 . . Emergency Access 2 | . . . . . . . . . . . . . . 1 . . . . . . . . . . 1 . Component Stockpiles 1 | . . . . . . . . . . . . . . . . . . . . . . . . . 1 . Prototype Stockpiles 2 | . . . . . . . . . . . . . . . . . . 1 . . . . . . 1 . Unaware Schematics 1 | . . . . . . . . . . . . . . . . . . . . . . . . . 1 . Unaware Analyses 1 | . . . . . . . . . . . . . . . . . . 1 . . . . . . . . Trap Installations 1 | . . . . . . . . . . . . . . . . . . . . . . . . . 1 . Active Terminals 2 | . . . . . . . . . . . . . . 1 . . . 1 . . . . . . . . Active Garrisons 2 | . . . . . . . . . . . . . . 1 . . . . . . . . 1 . . . Depthwide Sectors/0 1 | . . . . . . . . . . . . . . . 1 . . . . . . . . . . . Exploration | -11 -10 -10 -9 -9 -9 -8 -8 -8 -7 -7 -7 -7 -6 -6 -5 -5 -4 -4 -4 -4 -4 -3 -3 -2 -2 -2 ------------- Run | Scr Mat Min Mat Min Exi Min Mat Sto Fac Low Low Zio Pro Fac Fac DSF Fac Ext Cet Arc Hub Res Tes Res Qua Sec Turns Passed 24950 | . 2068 540 1375 1588 610 405 2011 2578 336 553 79 819 337 923 155 83 575 1221 316 301 455 349 2211 1061 2409 1592 Spaces Moved 15669 | 1 565 158 495 572 252 158 634 835 757 704 175 1133 468 1520 264 95 796 1560 178 89 207 185 1358 510 1177 823 Core 400 | . . . . . . . . . . . . . . . . . . . . . . 45 211 . . 144 Treads 6348 | . . . 495 572 252 158 634 812 . . . . . . . . . . 132 89 207 140 491 510 1177 679 Legs 967 | 1 565 158 . . . . . . . . . . . . . . . . . . . . 243 . . . Wheels . | . . . . . . . . . . . . . . . . . . . . . . . . . . . Hover 1051 | . . . . . . . . . . . . . . . . . . 592 46 . . . 413 . . . Flight 6903 | . . . . . . . . 23 757 704 175 1133 468 1520 264 95 796 968 . . . . . . . . Fastest Speed 20 | 120 120 330 240 240 240 240 240 238 27 27 27 27 27 24 20 20 20 25 53 160 160 50 45 161 158 50 Average Speed 118 | 120 319 330 240 240 240 240 241 246 27 27 27 61 29 29 20 20 24 45 137 160 160 133 114 163 160 133 Slowest Speed 734 | 120 330 330 240 240 240 240 242 734 104 27 97 97 97 97 20 20 25 120 216 160 160 160 600 165 232 232 Overloaded Moves 10 | . . . . . . . . . . . . . . . . . . . . . . . 10 . . . Propulsion Burnouts . | . . . . . . . . . . . . . . . . . . . . . . . . . . . Robots Hopped 29 | . . . . . . . . . 3 . . . . 10 1 . 5 10 . . . . . . . . Cave-ins Triggered . | . . . . . . . . . . . . . . . . . . . . . . . . . . . Teleports 7 | . . . . . . . . . . . . . . . . . . . . . . . . . 3 4 Exploration Rate (%) 54 | 2 84 35 44 92 62 56 47 87 20 68 38 89 65 46 8 94 22 97 60 80 20 9 87 16 84 50 Regions Visited 26 Branch Regions 16 Pre-discovered Areas 12 | . 2 1 . 1 1 . . . . . . 2 . . 5 . . . . . . . . . . . Known Exits Taken 17 | . 1 . 1 . . . 1 . 1 1 1 1 1 1 1 . 1 1 1 1 1 1 . 1 . . Unknown Exits Taken 8 | 1 . 1 . 1 1 1 . 1 . . . . . . . . . . . . . . 1 . 1 . Scrap Searched 15 | . . . . 3 . 1 . . . 4 1 4 2 . . . . . . . . . . . . . Spaces Dug 156 | . . . . . . . 19 1 2 5 . . 6 45 7 2 15 10 . . 3 6 5 6 16 8 Terrain Destroyed 1372 | . . . 15 79 . . 70 36 2 5 50 . 6 79 10 2 15 90 1 14 176 6 7 9 688 12 Melee 113 | . . . . . . . 1 1 2 4 . . 5 37 6 2 14 9 . . . . 5 3 16 8 Projectile 57 | . . . . . . . . . . 1 1 . 1 12 4 . 1 4 1 14 9 . 2 3 . 4 AOE 1196 | . . . 15 79 . . 69 35 . . 49 . . 30 . . . 77 . . 167 6 . . 669 . Terrain Rammed . | . . . . . . . . . . . . . . . . . . . . . . . . . . . Walls Destroyed . | . . . . . . . . . . . . . . . . . . . . . . . . . . . Machines Disabled . | . . . . . . . . . . . . . . . . . . . . . . . . . . . Actions | -11 -10 -10 -9 -9 -9 -8 -8 -8 -7 -7 -7 -7 -6 -6 -5 -5 -4 -4 -4 -4 -4 -3 -3 -2 -2 -2 --------- Run | Scr Mat Min Mat Min Exi Min Mat Sto Fac Low Low Zio Pro Fac Fac DSF Fac Ext Cet Arc Hub Res Tes Res Qua Sec Total 20623 | . 733 167 619 770 261 169 979 1233 870 1060 194 1250 661 1912 352 153 1149 2037 241 188 283 279 1773 668 1512 1110 Wait 2702 | . 77 . 33 175 . . 210 185 42 341 2 94 170 207 68 38 285 304 32 50 38 25 125 44 106 51 Move 15587 | . 564 157 494 571 251 157 632 834 750 703 174 1132 467 1500 261 94 785 1541 177 88 206 184 1357 509 1176 823 Hop 26 | . . . . . . . . . 3 . . . . 9 1 . 5 8 . . . . . . . . Pick Up 180 | . 10 . 22 . 5 1 15 19 6 2 4 2 2 8 3 1 7 1 3 4 1 9 19 8 12 16 Fast Attach 220 | . 2 . 6 2 . . 4 8 9 . . 1 . 14 1 3 9 16 10 1 5 4 57 7 22 39 Attach 117 | . 2 . 3 . . 1 5 6 4 1 3 4 5 12 2 2 6 4 1 1 1 5 10 5 15 19 Detach 74 | . 1 . 2 . . . 2 2 4 2 1 4 5 15 . 1 3 4 . 1 . 2 8 . 7 10 Swap 187 | . 8 4 7 9 . 1 16 25 10 3 1 5 3 24 4 4 9 14 1 4 . 6 4 15 8 2 Drop 315 | . 5 . 14 3 5 1 19 43 13 2 1 4 2 16 2 1 16 8 10 5 4 25 34 21 31 30 Fire 631 | . 62 6 35 8 . 7 75 107 . 1 8 1 2 16 4 . 2 23 7 34 26 12 91 34 44 26 Melee 487 | . . . . . . . 1 1 11 5 . 3 5 55 6 2 22 114 . . . . 63 25 85 89 Ram 2 | . . . . . . . . . . . . . . . . . . . . . . . . . . 2 Kick 2 | . 2 . . . . . . . . . . . . . . . . . . . . . . . . . Crush 19 | . . . 3 2 . 1 . . . . . . . . . . . . . . 2 7 1 . . 3 Escape Stasis 70 | . . . . . . . . 3 18 . . . . 36 . 7 . . . . . . . . 6 . Rewire 4 | . . . . . . . . . . . . . . . . . . . . . . . 4 . . . Trap . | . . . . . . . . . . . . . . . . . . . . . . . . . . . Miscellaneous . | . . . . . . . . . . . . . . . . . . . . . . . . . . . Route ------- -11/Scrapyard -10/Materials (discovered 5 exits: *Mat x3 / *Min x2) -10/Mines -9/Materials (discovered 3 exits: *Mat / *Min x2) -9/Mines (discovered 3 exits: *Mat x2 / *Exi) -9/Exiles -8/Mines -8/Materials (discovered 2 exits: *Fac / *Sto) -8/Storage -7/Factory (discovered 3 exits: *Fac / *Low x2) -7/Lower Caves -7/Lower Caves -7/Zion -6/Proximity Caves -6/Factory (discovered 3 exits: *Fac / Low x2) -5/Factory -5/DSF -4/Factory (discovered 5 exits: *Upp x2 / *Ext x2 / Arm) -4/Extension (discovered 2 exits: *Res / *Cet) -4/Cetus (discovered 2 exits: *Res / *Arc) -4/Archives (discovered 3 exits: *Res / *Hub x2) -4/Hub_04(d) (discovered 2 exits: *Res x2) -3/Research (discovered 2 exits: *Tes x2) -3/Testing -2/Research (discovered 3 exits: *Acc / *Qua x2) -2/Quarantine (discovered 2 exits: *Acc / *Sec) -2/Section 7 History --------- Turn | Location | Event 1 | -11/Scrapyard | Discovered new exit (range 0) 1 | -11/Scrapyard | Entered Materials 33 | -10/Materials | Identified exit to Mines 39 | -10/Materials | Central database locked down 304 | -10/Materials | Build established: Mutant 587 | -10/Materials | Discovered new exit (range 8) 864 | -10/Materials | Discovered new exit (range 6) 1451 | -10/Materials | Core integrity fell below 50% 1570 | -10/Materials | Discovered new exit (range 10) 2069 | -10/Materials | Entered Mines 2133 | -10/Mines | Core integrity fell below 20% 2546 | -10/Mines | Discovered new exit (range 12) 2553 | -10/Mines | Assisted by bots powering up and referring to "LRC-V3" 2576 | -10/Mines | Learned Materials terminal intel 2590 | -10/Mines | Learned location of Storage (-8) 2609 | -10/Mines | Entered Materials 2609 | -9/Materials | Accompanied by 5 allies 2609 | -9/Materials | Evolved 2 slots: Propulsion x1, Utility x1 2610 | -9/Materials | Loaded intel: 12 terminal locations 2614 | -9/Materials | Led the pair of lost Derelicts to an unsafe place 3039 | -9/Materials | Build established: Scavenger-Mutant 3288 | -9/Materials | Identified exit to Mines 3508 | -9/Materials | Discovered new exit (range 8) 3665 | -9/Materials | Build established: Mutant 3984 | -9/Materials | Entered Mines 4041 | -9/Mines | Discovered new exit (range 14) 4063 | -9/Mines | Deemed a non-threat by the Exiles lab entrance 4065 | -9/Mines | Discovered new exit (range 5) 4249 | -9/Mines | Discovered new exit (range 7) 4640 | -9/Mines | Excavation squad dispatched 4640 | -9/Mines | A large section of the Mines collapsed 5227 | -9/Mines | Learned location of Zion (-7) 5572 | -9/Mines | Entered Exiles 5637 | -9/Exiles | Met 8R-AWN 5675 | -9/Exiles | Met EX-HEX 5781 | -9/Exiles | Met EX-DEC 5831 | -9/Exiles | Met EX-BIN 5867 | -9/Exiles | Aligned with FarCom system 5870 | -9/Exiles | Given EX-Vault access code 5925 | -9/Exiles | Opened EX-Vault 5942 | -9/Exiles | Found Longsword +1 5953 | -9/Exiles | Found 0b10 Alert Chip 6002 | -9/Exiles | Warned to stay clear of 0b10 Research branches 6156 | -9/Exiles | Discovered new exit (range 14) 6182 | -9/Exiles | Stole two prototypes: 0b10 Alert Chip, Longsword +1 6182 | -9/Exiles | Entered Mines 6563 | -8/Mines | Discovered new exit (range 12) 6587 | -8/Mines | Entered Materials 6587 | -8/Materials | Evolved 2 slots: Propulsion x1, Utility x1 6588 | -8/Materials | Identified exit to Storage 6986 | -8/Materials | Repaired Lgt. Treads 7718 | -8/Materials | Discovered new exit (range 11) 8598 | -8/Materials | Entered Storage 8683 | -8/Storage | Repaired Lgt. Armor Plating 9455 | -8/Storage | Met a pair of Derelict thieves 9538 | -8/Storage | Build established: Hacker-Mutant 9541 | -8/Storage | Destroyed 8 combat bots 9860 | -8/Storage | Discovered new exit (range 8) 9991 | -8/Storage | Build established: Scavenger-Mutant 10564 | -8/Storage | Repaired Imp. Propulsion Shielding 10603 | -8/Storage | Repaired Imp. Light Armor Plating 10647 | -8/Storage | Repaired Med. Storage Unit 10686 | -8/Storage | Repaired Imp. Sensor Array 11176 | -8/Storage | Entered Factory 11176 | -7/Factory | Evolved 2 slots: Utility x2 11178 | -7/Factory | FarCom data flow suspended 11228 | -7/Factory | Identified exit to Lower Caves 11282 | -7/Factory | Discovered new exit (range 9) 11512 | -7/Factory | Entered Lower Caves 11729 | -7/Lower Caves | Build established: Scavenger-Scout 11934 | -7/Lower Caves | Spotted B-75 Beast 12040 | -7/Lower Caves | Discovered new exit (range 13) 12065 | -7/Lower Caves | Identified exit to Lower Caves 12065 | -7/Lower Caves | Entered another Lower Caves area 12082 | -7/Lower Caves | Learned Factory stockpile data 12107 | -7/Lower Caves | Discovered new exit (range 16) 12108 | -7/Lower Caves | Spotted OF-NQG(f) 12108 | -7/Lower Caves | Spotted KZ-CZ7(f) 12108 | -7/Lower Caves | Spotted V3-N75(f) 12109 | -7/Lower Caves | Spotted FY-HTY(f) 12110 | -7/Lower Caves | Encountered a Master Thief 12110 | -7/Lower Caves | Encountered a Master Thief 12110 | -7/Lower Caves | Encountered a Master Thief 12110 | -7/Lower Caves | Encountered a Master Thief 12110 | -7/Lower Caves | 0b10 Alert Chip stolen by Master Thief 12113 | -7/Lower Caves | Longsword +1 stolen by Master Thief 12113 | -7/Lower Caves | Destroyed V3-N75(f) 12120 | -7/Lower Caves | Destroyed OF-NQG(f) 12126 | -7/Lower Caves | Destroyed KZ-CZ7(f) 12143 | -7/Lower Caves | Identified exit to Zion 12144 | -7/Lower Caves | Entered Zion 12154 | -7/Zion | Lost 3 parts (3u) 12160 | -7/Zion | Given A8's code to call for help 12162 | -7/Zion | Discovered new exit (range 8) 12165 | -7/Zion | Identified exit to Proximity Caves 12203 | -7/Zion | Learned location of 1 exit from Factory 12223 | -7/Zion | Given the Hacking Drone Bay 12223 | -7/Zion | Found Prototype Device 12223 | -7/Zion | Identified Hacking Drone Bay 12256 | -7/Zion | Learned location of Data Miner (-6) 12262 | -7/Zion | Found CR-A16's Pointy Stick 12289 | -7/Zion | Visited the Megawrench Repair Shop 12305 | -7/Zion | Learned location of Armory (-4) 12494 | -7/Zion | Imprinted 12496 | -7/Zion | Declared Zion's savior 12582 | -7/Zion | Build established: Scavenger-Mutant 12703 | -7/Zion | Received a visual enhancement algorithm 12842 | -7/Zion | Megawrench repaired 12 parts 12963 | -7/Zion | Entered Proximity Caves 12963 | -6/Proximity Caves | Accompanied by 4 allies 13091 | -6/Proximity Caves | Identified exit to Factory 13300 | -6/Proximity Caves | Entered Factory 13300 | -6/Factory | Evolved 2 slots: Propulsion x1, Utility x1 13301 | -6/Factory | Identified exit to Lower Caves 13415 | -6/Factory | Fabricated Imp. Transmission Jammer? 13520 | -6/Factory | Zion Infowar Resupply teleported in 13676 | -6/Factory | Retrieved Zion intel report: Active Terminals 13754 | -6/Factory | Retrieved Zion intel report: Emergency Access 13758 | -6/Factory | Build established: Sprinter 13818 | -6/Factory | Retrieved Zion intel report: Active Garrisons 13819 | -6/Factory | Zion Kinetic Resupply teleported in 13913 | -6/Factory | Fabricated H-88 Terminator? 13958 | -6/Factory | Identified exit to Garrison 14155 | -6/Factory | Discovered new exit (range 14) 14158 | -6/Factory | Retrieved Zion intel report: Branch Access 14159 | -6/Factory | Zion Recon squad teleported in 14218 | -6/Factory | Identified exit to Factory 14223 | -6/Factory | Entered another Factory area 14223 | -5/Factory | Evolved 2 slots: Propulsion x1, Utility x1 14358 | -5/Factory | Retrieved Zion intel report: Depthwide Sectors/0 14359 | -5/Factory | Zion Hacking Resupply teleported in 14377 | -5/Factory | Identified exit to DSF 14378 | -5/Factory | Entered DSF 14433 | -5/DSF | Additional patrols routed to DSF 14452 | -5/DSF | Discovered new exit (range 14) 14461 | -5/DSF | Entered Factory 14461 | -4/Factory | Evolved 2 slots: Power x1, Utility x1 14547 | -4/Factory | Found Quantum Capacitor 14715 | -4/Factory | Spotted B-86 Titan 14826 | -4/Factory | Retrieved Zion intel report: Branch Access 14826 | -4/Factory | Identified exit to Upper Caves 14826 | -4/Factory | Identified exit to Extension 14826 | -4/Factory | Identified exit to Armory 14827 | -4/Factory | Zion Fire squad teleported in 14904 | -4/Factory | Zion Heavy squad teleported in 14928 | -4/Factory | Found Prototype Hackware 14955 | -4/Factory | Zion Recon squad teleported in 14966 | -4/Factory | Identified Exp. System Shield 15000 | -4/Factory | First assault squad dispatched 15036 | -4/Factory | Entered Extension 15036 | -4/Extension | Accompanied by 2 allies 15046 | -4/Extension | Zion hero teleported in (P1-3CE) 15121 | -4/Extension | Retrieved Zion intel report: Unaware Analyses 15123 | -4/Extension | Retrieved Zion intel report: Prototype Stockpiles 15234 | -4/Extension | Rescued a captive Derelict 15236 | -4/Extension | Rescued a captive Derelict 15462 | -4/Extension | Spotted B-86 Titan 15506 | -4/Extension | Allies destroyed B-86 Titan 15508 | -4/Extension | Spotted B-86 Titan 15511 | -4/Extension | Build established: Commander-Ninja 15536 | -4/Extension | First assault squad dispatched 15542 | -4/Extension | Allies destroyed B-86 Titan 15781 | -4/Extension | Retrieved Zion intel report: Active Terminals 15782 | -4/Extension | Zion Heavy squad teleported in 15879 | -4/Extension | Discovered new exit (range 10) 15880 | -4/Extension | Disrupted transfer network 15880 | -4/Extension | Discovered new exit (range 6) 16069 | -4/Extension | Zion Fire squad teleported in 16185 | -4/Extension | Build established: Scavenger-Mutant 16199 | -4/Extension | Identified exit to Research 16202 | -4/Extension | Identified exit to Cetus 16257 | -4/Extension | Entered Cetus 16257 | -4/Cetus | Accompanied by 4 allies (P1-3CE) 16268 | -4/Cetus | Spotted Cetus Guard 16268 | -4/Cetus | Spotted Cetus Guard 16268 | -4/Cetus | Spotted Cetus Guard 16268 | -4/Cetus | Spotted Cetus Guard 16272 | -4/Cetus | Allies destroyed Cetus Guard 16282 | -4/Cetus | Destroyed Cetus Guard 16282 | -4/Cetus | Allies destroyed Cetus Guard 16283 | -4/Cetus | Allies destroyed Cetus Guard 16388 | -4/Cetus | Discovered new exit (range 21) 16424 | -4/Cetus | Spotted Cetus Guard 16425 | -4/Cetus | Spotted Cetus Guard 16428 | -4/Cetus | Spotted Cetus Guard 16431 | -4/Cetus | Spotted Cetus Guard 16431 | -4/Cetus | Allies destroyed Cetus Guard 16435 | -4/Cetus | Allies destroyed Cetus Guard 16440 | -4/Cetus | Allies destroyed Cetus Guard 16441 | -4/Cetus | Allies destroyed Cetus Guard 16461 | -4/Cetus | Discovered exit to Research (range 22) 16480 | -4/Cetus | Scared off Revision 17 16552 | -4/Cetus | Identified exit to Archives 16573 | -4/Cetus | Entered Archives 16573 | -4/Archives | Accompanied by 1 ally (P1-3CE) 16607 | -4/Archives | Discovered new exit (range 22) 16651 | -4/Archives | Discovered new exit (range 22) 16767 | -4/Archives | Discovered exit to Research (range 21) 16857 | -4/Archives | Identified exit to Hub_04(d) 16874 | -4/Archives | Entered Hub_04(d) 16874 | -4/Hub_04(d) | Accompanied by 1 ally (P1-3CE) 16909 | -4/Hub_04(d) | Zion Heavy squad teleported in 17013 | -4/Hub_04(d) | Zion Fire squad teleported in 17050 | -4/Hub_04(d) | Zion Defense Resupply teleported in 17099 | -4/Hub_04(d) | Build established: Scavenger-Skirmisher 17285 | -4/Hub_04(d) | Discovered exit to Research (range 8) 17307 | -4/Hub_04(d) | Discovered exit to Research (range 10) 17325 | -4/Hub_04(d) | Network Hub disabled 17329 | -4/Hub_04(d) | Entered Research 17329 | -3/Research | Evolved 2 slots: Power x1, Utility x1 17361 | -3/Research | Retrieved Zion intel report: Branch Access 17361 | -3/Research | Identified exit to Testing 17362 | -3/Research | Zion Hacker squad teleported in 17413 | -3/Research | Build established: Scavenger-Mutant 17522 | -3/Research | Spotted B-86 Titan 17579 | -3/Research | First assault squad dispatched 17605 | -3/Research | System corruption reached 10% 17626 | -3/Research | Zion Light squad teleported in 17645 | -3/Research | Lost 7 parts (1p1n4u1w) 17678 | -3/Research | Entered Testing 17877 | -3/Testing | Core integrity fell below 50% 18182 | -3/Testing | Found Prototype Launcher 18261 | -3/Testing | Repaired Lgt. Antimatter Reactor 18530 | -3/Testing | Lost 5 parts (1p2n2u) 18584 | -3/Testing | Retrieved Zion intel report: Active Garrisons 18668 | -3/Testing | Found Prototype Slashing Weapon 18668 | -3/Testing | Identified Centrium Greatsword 18743 | -3/Testing | Found Prototype Protection 18776 | -3/Testing | Identified Adv. Micro-nuke Launcher 18937 | -3/Testing | Identified SHELL Armor 19015 | -3/Testing | Discovered new exit (range 16) 19025 | -3/Testing | Terminal network hard line cut 19137 | -3/Testing | Found Fusion Bomb Launcher 19543 | -3/Testing | Found Prototype Ballistic Gun 19543 | -3/Testing | Identified Hyp. Multirail 19570 | -3/Testing | Build established: Generator-Mutant 19735 | -3/Testing | System corruption reached 30% 19889 | -3/Testing | Entered Research 19889 | -2/Research | Evolved 2 slots: Power x1, Utility x1 19907 | -2/Research | Found Prototype Processor 19997 | -2/Research | Identified Exp. Terrain Scan Processor 20276 | -2/Research | Discovered new exit (range 13) 20462 | -2/Research | Spotted B-90 Cyclops 20899 | -2/Research | Retrieved Zion intel report: Branch Access 20899 | -2/Research | Identified exit to Quarantine 20900 | -2/Research | Zion Experimental squad teleported in 20925 | -2/Research | First assault squad dispatched 20950 | -2/Research | Entered Quarantine 20950 | -2/Quarantine | Accompanied by 1 ally 21066 | -2/Quarantine | Found Exp. Core Analyzer 21153 | -2/Quarantine | Found Alien Artifact 21153 | -2/Quarantine | Identified Dimensional Node Initializer 21153 | -2/Quarantine | Initialized slip node 21163 | -2/Quarantine | Found Alien Artifact 21163 | -2/Quarantine | Identified Transdimensional Reconstructor 21163 | -2/Quarantine | Warped through subspace to slip node 21212 | -2/Quarantine | Found Alien Artifact 21259 | -2/Quarantine | Found Alien Impact Weapon 21313 | -2/Quarantine | Found Alien Slashing Weapon 21313 | -2/Quarantine | Identified Sigix Broadsword 21345 | -2/Quarantine | Spotted Alpha 7 21385 | -2/Quarantine | Destroyed Alpha 7 21431 | -2/Quarantine | Found Alien Launcher 21431 | -2/Quarantine | Identified Sigix Terminator 21539 | -2/Quarantine | Retrieved Zion intel report: Trap Installations 21651 | -2/Quarantine | System corruption reached 10% 21721 | -2/Quarantine | Destroyed 8 combat bots 21786 | -2/Quarantine | Discovered new exit (range 18) 21846 | -2/Quarantine | Retrieved Zion intel report: Prototype Stockpiles 21881 | -2/Quarantine | Retrieved Zion intel report: Component Stockpiles 21912 | -2/Quarantine | Retrieved Zion intel report: Unaware Schematics 21965 | -2/Quarantine | Retrieved Zion intel report: Emergency Access 22113 | -2/Quarantine | Found Alien Artifact 22113 | -2/Quarantine | Identified Core Reset Matrix 22113 | -2/Quarantine | Identified Hpw. Transdimensional Reconstructor 22113 | -2/Quarantine | Identified Core Stripper 22113 | -2/Quarantine | Used Core Reset Matrix 22117 | -2/Quarantine | Detected hypermatrix surge 22117 | -2/Quarantine | Sensed 6 artifacts in vicinity 22200 | -2/Quarantine | First assault squad dispatched 22256 | -2/Quarantine | Found Transdimensional Reconstructor 22256 | -2/Quarantine | Warped through subspace to slip node 22270 | -2/Quarantine | Found Hpw. Transdimensional Reconstructor 22340 | -2/Quarantine | Warped through subspace to slip node 22347 | -2/Quarantine | Found Dimensional Node Initializer 22422 | -2/Quarantine | Terminal network hard line cut 22682 | -2/Quarantine | Scanned by Researcher 22738 | -2/Quarantine | Discovered new exit (range 14) 22978 | -2/Quarantine | Found Subatomic Replicator 23008 | -2/Quarantine | Fired Sigix Terminator 23239 | -2/Quarantine | Spotted Fortress 23352 | -2/Quarantine | Discovered new exit (range 5) 23359 | -2/Quarantine | Entered Section 7 23360 | -2/Section 7 | Sensed 24 artifacts in vicinity 23470 | -2/Section 7 | Spotted S7 Guard 23509 | -2/Section 7 | Destroyed S7 Guard 23517 | -2/Section 7 | Found Prototype Protection 23517 | -2/Section 7 | Identified Hvy. Regenerative Plating 23547 | -2/Section 7 | Build established: Mutant 23609 | -2/Section 7 | First assault squad dispatched 23636 | -2/Section 7 | Found Core Regenerator 23699 | -2/Section 7 | Retrieved Zion intel report: Main Access 23699 | -2/Section 7 | Identified exit to Access 23750 | -2/Section 7 | Spotted S7 Guard 23758 | -2/Section 7 | Found Integrated Thermoelectric Network 23758 | -2/Section 7 | Installed Integrated Thermoelectric Network, gained heat-energy exchange potential 23760 | -2/Section 7 | Warped through subspace 23787 | -2/Section 7 | Found Hpw. Transdimensional Reconstructor 23790 | -2/Section 7 | Found Transdimensional Reconstructor 23795 | -2/Section 7 | Found Transdimensional Reconstructor 23813 | -2/Section 7 | Found Terrabomb 23971 | -2/Section 7 | Found Sigix Sheargun 24002 | -2/Section 7 | System corruption reached 30% 24056 | -2/Section 7 | Spotted Striker 24056 | -2/Section 7 | Spotted Striker 24059 | -2/Section 7 | Build established: Alien-Mutant 24073 | -2/Section 7 | Spotted Striker 24085 | -2/Section 7 | Spotted Striker 24088 | -2/Section 7 | Destroyed Striker 24106 | -2/Section 7 | Core integrity fell below 50% 24108 | -2/Section 7 | Destroyed Striker 24169 | -2/Section 7 | Lost 3 parts (1p2n) 24191 | -2/Section 7 | Destroyed Striker 24228 | -2/Section 7 | Found Sigix Shearcannon 24456 | -2/Section 7 | Warped through subspace 24522 | -2/Section 7 | Scanned by Researcher 24551 | -2/Section 7 | Build established: Generator-Mutant 24592 | -2/Section 7 | Found Core Reset Matrix 24594 | -2/Section 7 | Sensed 16 artifacts in vicinity 24595 | -2/Section 7 | Found Core Reset Matrix 24625 | -2/Section 7 | Terminal network hard line cut 24645 | -2/Section 7 | Found LRC Energy Well 24645 | -2/Section 7 | Installed LRC Energy Well, increased energy storage capacity (+250) 24654 | -2/Section 7 | Found LRC Matter Compressor 24654 | -2/Section 7 | Installed LRC Matter Compressor, increased matter storage capacity (+125) 24657 | -2/Section 7 | Found LRC Armor 24657 | -2/Section 7 | Installed LRC Armor, increased core integrity (+250) 24684 | -2/Section 7 | Intercept squad dispatched 24714 | -2/Section 7 | Spotted Tracker 24717 | -2/Section 7 | Spotted Tracker 24738 | -2/Section 7 | Destroyed Tracker 24741 | -2/Section 7 | Destroyed Tracker 24755 | -2/Section 7 | Found Prototype Processor 24755 | -2/Section 7 | Identified Exp. Targeting Computer 24762 | -2/Section 7 | Found Prototype Device 24762 | -2/Section 7 | Identified Exp. Phase Shifter 24767 | -2/Section 7 | Warped through subspace 24794 | -2/Section 7 | Found Core Reset Matrix 24797 | -2/Section 7 | Sensed 11 artifacts in vicinity 24810 | -2/Section 7 | Spotted Combat Programmer 24813 | -2/Section 7 | Warped through subspace 24849 | -2/Section 7 | Spotted Alpha 7 24849 | -2/Section 7 | Spotted Alpha 7 24855 | -2/Section 7 | Used Subatomic Replicator to replicate SHELL Armor 24866 | -2/Section 7 | Core integrity fell below 20% 24866 | -2/Section 7 | Used Core Regenerator, restored core integrity (+425) 24898 | -2/Section 7 | Lost 13 parts (2p3n7u1w) 24944 | -2/Section 7 | Build established: Alien-Mutant 24951 | -2/Section 7 | Destroyed by G-73 Enforcer with Phase Gun Last Messages --------------- 24868_ Slug penetrates Wall. 24868_ Penetrated by Slug. 24868_ Slug penetrates Wall. 24868_ Slug penetrates Reinforced Barrier. 24870_ Acquired 116 matter. 24878_ Slug penetrates Wall. 24879_ Penetrated by Slug. 24879_ Slug penetrates Aeration Cycler. 24896_ Slug penetrates Wall. 24904_ Penetrated by Slug. 24904_ Slug penetrates Wall. 24907_ Slammed into L-61 Swordsman. 24907_ Destabilizing: Core damaged (-34). 24908_ Slug penetrates Aeration Cycler. 24908_ Slammed into Alpha 7. 24908_ Exp. Core Analyzer broken. 24908_ Destabilizing: Short circuit. 24908_ Slug penetrates Aeration Cycler. 24917_ System corrupted: Matter fused (-7). 24941_ Slug penetrates Quantum Generator. Map ----- +----------------------------------------------------+ | ?????????????????????????????????????????????????? | | ?????????????????????????????????????????????????? | | ?????????????????????????????????????????????????? | | ?????????????????????????????????????????????????? | | ?????????????????????????????????????????????????? | | ?????????????????????????????????????????????????? | | ?????????????????????????????????????????????????? | | ?????????????????????????????????????????????????? | | ?????????????????????????????????????????# ???? ?? | | ?????????????????????????????????????????# ? ?? | | ?????????????????????????????????????????# ? | | ?????????????????????????????????????????# " | | ?????????????????????????????????????????# " | | ?????????????????????????????????????????# """" | | ?????????????????????????????????????????# "!"" | | ????????????????????????#+#??????????????# """" | | ???????????????????????? ??????????????? " | | ???????????????????????? T ????????????????? " | | ????????????????????????"" ??????????????????? | | ???????????????????????? ??????????????????#+#+# | | ???????????????????????? ???????????######## | | ????????????????????????# #??????????? """"" # | | ????????????????????????# #???????? ""R"" # ** | | ????????????????????????# #???????? " " + ** | | ????????????????????????# #??????? # ! | | ????????????????????????#@#????# # | | ??????????????########### ###############/#### | | ?????????? A | | ?????????? ! | | ?????????????### """"""" % | | ???????????????# """"""" % | | ???????????????# b % """""""% | | ????????????? gg g % % | | ???????????? ###### "" "" | | ???????????? m #????# ""T"" | | ????????????? #????# """ | | ?????????????#########+##+?????# | | ????????????????????? ????????# | | ???????????????????? "S????????### """"T"""" # | | ???????????????????? ""??????????#"""""""""""# | | ???????????????????#?????????????#########???#? | | ?????????????????????????????????????????????????? | | ?????????????????????????????????????????????????? | | ?????????????????????????????????????????????????? | | ?????????????????????????????????????????????????? | | ?????????????????????????????????????????????????? | | ?????????????????????????????????????????????????? | | ?????????????????????????????????????????????????? | | ?????????????????????????????????????????????????? | | ?????????????????????????????????????????????????? | +----------------------------------------------------+ Best States ------------- Heat Dissipation 155 Energy Generation 108 Energy Capacity 1190 Matter Stores 700 Matter Capacity 700 Sight Range 22 Robot Scan Range 18 Terrain Scan Range 24 Terrain Scan Density 1010 Jamming Range 16 Cloak Strength 2 Power Amplification 40 Additional Mass Support 16 Corruption Block 24 Armor Coverage 3000 Resistance: TH 25 Propulsion Shielding 66 Weapon Shielding 66 Weapon Cycling 25 Phase Shifting 10 Evasion (%) 66 Targeting Accuracy 12 Melee Accuracy 6 Target Analysis 12 Core Analysis 8 Recoil Reduction 6 Offensive Hacking 23 Defensive Hacking 24 Authchip Count 2 Item Schematics ----------------- None Robot Schematics ------------------ None Fabricated ------------ Imp. Transmission Jammer | x1 | -6/Factory H-88 Terminator | x2 | -6/Factory Alien Tech Used ----------------- Dimensional Node Initializer Transdimensional Reconstructor Sigix Broadsword Sigix Terminator Core Reset Matrix High-powered Transdimensional Reconstructor Integrated Thermoelectric Network Sigix Sheargun Core Stripper Sigix Shearcannon LRC Energy Well LRC Matter Compressor LRC Armor Subatomic Replicator Core Regenerator Achievements -------------- Artifact Hunter Sunderer Challenges ------------ None Game ------ Seed ChainDiametricProtection Manual? 0 Play Time 04:08:15 Cumulative 164.4 hours Start 2022.12.19 @ 09:22:37 End 2022.12.21 @ 13:50:54 Sessions 3 Manual Loads 0 Difficulty Rogue Special Mode None Game No. 207 Rogue 207 Adventurer 0 Explorer 0 Win Type - Total 2 Types 1/0/0/1/0/0/0/0/0 Lore% 77 Gallery% 79 Achievement% 64 Wizard Run 0 Options --------- ASCII 0 Keyboard 0 Movement Numpad Keybinds 0 Fullscreen 2 Font 18/SmallcapsGlow Map View 76x50 Tactical HUD 1 Map Filters NONE Filters NONE Steam 1 RUN: fc72fd17-2cb0-4bd8-801e-41af75100d7b